Cogmind - Beta 13 @@@ ROGUE MODE // 2024.03.03 @ 10:50:47 Player: surfboardsofcanada Result: Destroyed by Y-54 Guardian with Flak Gun Performance ------------- Evolutions (4) 2000 Regions Visited (8) 1600 Robots Destroyed (9) 45 Value Destroyed (415) 415 Prototype IDs (7) 140 Alien Tech Used (0) 0 Bonus (1825) 1825 TOTAL SCORE: 6025 Bonus ------- Pacifist 1325 Entered DSFs 500 Cogmind --------- Core Integrity 0/850 Matter 300/300 Energy 100/100 System Corruption 0% Temperature Cool (12) Movement Core (100) Ox1 Location -6/Lower Caves Parts ------- > --- POWER (2) -------- (None) > --- PROPULSION (6) --- (None) > --- UTILITY (5) ------ Advanced Signal Interpreter Melee Analysis Suite Makeshift System Shield > --- WEAPON (2) ------- Great Axe Spear > --- INVENTORY (5) ---- Shock Rifle Heavy Flail Peak State ------------ > --- POWER ------------ Light Fission Core Light Fission Core > --- PROPULSION ------- Carbon-fiber Leg Carbon-fiber Leg Carbon-fiber Leg Makeshift Flight Unit Makeshift Flight Unit Makeshift Flight Unit > --- UTILITY ---------- Advanced Signal Interpreter Core Analyzer Advanced ECM Suite Makeshift System Shield Drone Bay > --- WEAPON ----------- Spear Spear > --- INVENTORY -------- Light Fission Core Force Field Great Axe Great Axe Spear [Rating: 63] Favorites ----------- Power Light Fission Core Engine Light Ion Engine Power Core Light Fission Core Propulsion Carbon-fiber Leg Treads Improved Medium Treads Leg Carbon-fiber Leg Hover Unit Gravmag System Flight Unit Makeshift Flight Unit Utility Advanced Signal Interpreter Device Drone Bay Processor Advanced Signal Interpreter Hackware Makeshift System Shield Protection Improved Light Armor Plating Weapon Spear Slashing Weapon Great Axe Piercing Weapon Spear Build | -11 -10 -9 -9 -8 -7 -7 -6 -6 ------- Run | Yrd Mat Mat Min Mat Fac DSF Fac Low Slots Evolved 8 | . . 2 . 2 2 . 2 . Power 1 | . . . . . 1 . . . Propulsion 4 | . . 1 . 1 1 . 1 . Utility 3 | . . 1 . 1 . . 1 . Weapon . | . . . . . . . . . Parts Attached 51 | 3 . 3 1 4 5 1 17 17 Power 14 | 1 . 3 . 1 2 1 4 2 Engine 9 | 1 . 3 . 1 2 . 1 1 Core 5 | . . . . . . 1 3 1 Reactor . | . . . . . . . . . Propulsion 14 | 2 . . . 1 1 . 4 6 Treads 1 | . . . . . . . 1 . Leg 9 | 2 . . . 1 1 . 3 2 Wheel . | . . . . . . . . . Hover 1 | . . . . . . . . 1 Flight 3 | . . . . . . . . 3 Utility 17 | . . . 1 2 2 . 6 6 Device 9 | . . . . 2 2 . 3 2 Storage . | . . . . . . . . . Processor 5 | . . . 1 . . . 2 2 Hackware 2 | . . . . . . . . 2 Protection 1 | . . . . . . . 1 . Artifact . | . . . . . . . . . Weapon 6 | . . . . . . . 3 3 Energy Gun . | . . . . . . . . . Energy Cannon . | . . . . . . . . . Ballistic Gun . | . . . . . . . . . Ballistic Cannon . | . . . . . . . . . Launcher . | . . . . . . . . . Special Weapon . | . . . . . . . . . Impact Weapon . | . . . . . . . . . Slashing Weapon 2 | . . . . . . . . 2 Piercing Weapon 4 | . . . . . . . 3 1 Special Melee Weapon . | . . . . . . . . . Unidentified Prototypes 1 | . . . . . . . 1 . Parts Lost 26 | . . . . 1 . 4 1 20 Power 6 | . . . . . . 2 . 4 Propulsion 10 | . . . . . . 1 . 9 Utility 8 | . . . . 1 . 1 1 5 Weapon 2 | . . . . . . . . 2 Highest Loss Streak 13 | . . . . 1 . 4 1 13 To Critical Strikes . | . . . . . . . . . Average Slot Usage (%) 36 | . . 3 12 14 30 17 38 58 Engine 3 | . . 3 11 3 15 6 3 1 Core 3 | . . . . . . 1 3 5 Leg 7 | . . . . 2 7 3 8 12 Device 3 | . . . . 3 7 6 6 3 Processor 6 | . . . 1 5 . . 6 11 Hackware 2 | . . . . . . . . 5 Slashing Weapon 2 | . . . . . . . . 4 Piercing Weapon 4 | . . . . . . . 7 6 Naked Turns 192 | . 67 43 . 48 . 24 10 . Heaviest Build 34 | 5 . 3 3 12 15 15 31 34 Greatest Support 45 | 20 3 3 3 15 15 15 45 45 Greatest Overweight (x) 7 | 1 . . . . . . 4 7 Average Overweight (x) . | . . . . . . . . . Largest Inventory Capacity 5 | 5 5 5 5 5 5 5 5 5 Average Capacity 5 | 5 5 5 5 5 5 5 5 5 Most Carried 5 | 4 5 5 5 5 4 1 5 5 Average Carried 2 | 1 4 4 4 4 1 . 2 1 Final Capacity 5 | 5 5 5 5 5 5 5 5 5 Final Carried 5 | 4 5 4 4 5 . 1 5 2 Class Distribution -------------------- 89% | Mutant 7% | Derelict-Gladiator Dominant Class ---------------- Mutant | -10/Materials Mutant | -9/Materials Mutant | -9/Mines Mutant | -8/Materials Mutant | -7/Factory Mutant | -7/DSF Mutant | -6/Factory Mutant | -6/Lower Caves Resources | -11 -10 -9 -9 -8 -7 -7 -6 -6 ----------- Run | Yrd Mat Mat Min Mat Fac DSF Fac Low Matter Collected 631 | 230 . . 30 2 . . 243 126 Remotely . | . . . . . . . . . Salvage Created 530 | . . . . . . . 350 180 Parts 18 | . . . . . . . 12 6 Haulers Intercepted . | . . . . . . . . . Recyclers Shooed . | . . . . . . . . . Parts Field Recycled . | . . . . . . . . . Retrieved Matter . | . . . . . . . . . Parts Self-Destructed 3 | . . . . . . . . 3 Prevented 1 | . . . . . . . . 1 Kills | -11 -10 -9 -9 -8 -7 -7 -6 -6 ------- Run | Yrd Mat Mat Min Mat Fac DSF Fac Low Combat Hostiles Destroyed 8 | . . . . . . . 5 3 Melee 8 | . . . . . . . 5 3 Classes Destroyed 5 | . . . . . . . 4 1 Worker 1 | . . . . . . . 1 . Grunt 5 | . . . . . . . 3 2 Duelist 1 | . . . . . . . 1 . Sentry 1 | . . . . . . . 1 . Programmer 1 | . . . . . . . . 1 Best Kill Streak 3 | . . . . . . . 3 1 Combat Bots Only 3 | . . . . . . . 3 1 Max Kills in Single Turn 1 | . . . . . . . 1 1 Gunslinging . | . . . . . . . . . Exploded . | . . . . . . . . . Melee 1 | . . . . . . . 1 1 Uniques/NPCs Destroyed . | . . . . . . . . . Combat | -11 -10 -9 -9 -8 -7 -7 -6 -6 -------- Run | Yrd Mat Mat Min Mat Fac DSF Fac Low Hostile Shots Fired 335 | . . 5 . 53 . 10 129 138 Missed 128 | . . 3 . 21 . 2 45 57 Damage Taken 3392 | . . 34 52 531 . 395 1195 1185 Core 1657 | . . 34 52 494 . 226 509 342 Absorbed by Shields 213 | . . . . 28 . 14 132 39 Core Remaining (%) 71 | 100 100 . 78 10 . 67 . . Volleys Fired . | . . . . . . . . . Largest . | . . . . . . . . . Hottest . | . . . . . . . . . Shots Fired . | . . . . . . . . . Gun . | . . . . . . . . . Cannon . | . . . . . . . . . Launcher . | . . . . . . . . . Special . | . . . . . . . . . Kinetic . | . . . . . . . . . Thermal . | . . . . . . . . . Explosive . | . . . . . . . . . Electromagnetic . | . . . . . . . . . Robot Hit Streak . | . . . . . . . . . Robot Miss Streak . | . . . . . . . . . Penetration Max . | . . . . . . . . . Secondary Targets . | . . . . . . . . . Shots Hit Robots 30 | . . . . . . . 15 15 Core Hits 17 | . . . . . . . 10 7 Critical Kills . | . . . . . . . . . Critical Parts Destroyed . | . . . . . . . . . Critical Strikes 4 | . . . . . . . 3 1 Sever 1 | . . . . . . . . 1 Impale 3 | . . . . . . . 3 . Melee Attacks 37 | . . . . . . . 19 18 Impact . | . . . . . . . . . Slashing 7 | . . . . . . . . 7 Piercing 30 | . . . . . . . 19 11 Sneak Attacks 1 | . . . . . . . 1 . Combat Hostiles . | . . . . . . . . . Follow-up Attacks 3 | . . . . . . . . 3 Damage Inflicted 922 | . . . . 19 . . 427 476 Guns . | . . . . . . . . . Cannons . | . . . . . . . . . Explosions . | . . . . . . . . . Melee 894 | . . . . . . . 427 467 Ramming 28 | . . . . 19 . . . 9 Kinetic . | . . . . . . . . . Thermal . | . . . . . . . . . Explosive . | . . . . . . . . . Electromagnetic . | . . . . . . . . . Impact . | . . . . . . . . . Slashing 240 | . . . . . . . . 240 Piercing 654 | . . . . . . . 427 227 Highest Corruption . | . . . . . . . . . Average Corruption . | . . . . . . . . . Corruption Purged . | . . . . . . . . . Corruption Blocked . | . . . . . . . . . Overload Shots . | . . . . . . . . . Overflow Damage 4 | . . . . . . . 4 . Projectiles . | . . . . . . . . . Explosions . | . . . . . . . . . Melee 4 | . . . . . . . 4 . Knockbacks 1 | . . . . 1 . . . . Impact 1 | . . . . 1 . . . . Kinetic . | . . . . . . . . . Secondary . | . . . . . . . . . Self-Inflicted Damage 13 | . . . . 9 . . . 4 Shots . | . . . . . . . . . Rammed 6 | . . . . 2 . . . 4 Targets Rammed 6 | . . . . 2 . . . 4 Kicked . | . . . . . . . . . Crushed . | . . . . . . . . . Highest Temperature 17 | . . . . . . . 6 17 Average Temperature 7 | . . . . . . . 6 7 Received Heat Transfer 853 | . . . . 126 . . 282 445 Siege Activations . | . . . . . . . . . Robots Corrupted . | . . . . . . . . . Combat Hostiles . | . . . . . . . . . Parts Fried . | . . . . . . . . . Impact Corruptions . | . . . . . . . . . Robots Melted . | . . . . . . . . . Combat Hostiles . | . . . . . . . . . Parts Melted . | . . . . . . . . . Heat Transferred . | . . . . . . . . . Parts Sabotaged . | . . . . . . . . . Parts Stolen . | . . . . . . . . . Parts Stripped . | . . . . . . . . . Power Chain Reactions . | . . . . . . . . . Alert | -11 -10 -9 -9 -8 -7 -7 -6 -6 ------- Run | Yrd Mat Mat Min Mat Fac DSF Fac Low Peak Influence 152 | . 5 66 25 40 18 12 152 . Initial 25 | . . 1 25 9 18 12 7 . Average 40 | . 4 28 25 22 18 3 92 . Maximum Alert Level . | . . . . . . . . . Low Security (%) 100 | 100 100 100 100 100 100 100 100 . Level 1 . | . . . . . . . . . Level 2 . | . . . . . . . . . Level 3 . | . . . . . . . . . Level 4 . | . . . . . . . . . Level 5 . | . . . . . . . . . High Security . | . . . . . . . . . Max Security . | . . . . . . . . . Squads Dispatched 1 | . . . . 1 . . . . Investigation . | . . . . . . . . . Extermination . | . . . . . . . . . Reinforcement 1 | . . . . 1 . . . . Assault . | . . . . . . . . . Garrison . | . . . . . . . . . Intercept . | . . . . . . . . . Searches Triggered . | . . . . . . . . . Construction Impeded . | . . . . . . . . . Haulers Reinforced . | . . . . . . . . . Active Scanning Responses . | . . . . . . . . . Cargo Convoy Interrupts . | . . . . . . . . . Stealth | -11 -10 -9 -9 -8 -7 -7 -6 -6 --------- Run | Yrd Mat Mat Min Mat Fac DSF Fac Low Distress Signals 1 | . . . . 1 . . . . Communications Jammed . | . . . . . . . . . Distress Signals . | . . . . . . . . . Times Spotted 38 | . . 6 . 15 . 1 8 8 Peak Tracking Total 15 | . . 9 . 15 . 1 4 4 Tactical Retreats 5 | . . . . 2 . 1 1 1 Traps | -11 -10 -9 -9 -8 -7 -7 -6 -6 ------- Run | Yrd Mat Mat Min Mat Fac DSF Fac Low Traps Triggered 2 | . . . 1 1 . . . . Indirectly . | . . . . . . . . . Trap Hack Attempts . | . . . . . . . . . Triggered . | . . . . . . . . . Disarmed . | . . . . . . . . . Reprogrammed . | . . . . . . . . . Reused . | . . . . . . . . . Traps Extracted . | . . . . . . . . . Installed . | . . . . . . . . . Triggered 1 | . . . . . . . . 1 Machines | -11 -10 -9 -9 -8 -7 -7 -6 -6 ---------- Run | Yrd Mat Mat Min Mat Fac DSF Fac Low Machines Disabled . | . . . . . . . . . Max in Single Turn . | . . . . . . . . . Machines Repaired . | . . . . . . . . . Machines Dismantled . | . . . . . . . . . Machines Sabotaged . | . . . . . . . . . Overloaded Fab Kills . | . . . . . . . . . Hacking | -11 -10 -9 -9 -8 -7 -7 -6 -6 --------- Run | Yrd Mat Mat Min Mat Fac DSF Fac Low Machines Accessed 9 | . 2 2 1 2 1 . . 1 Terminals 7 | . 2 2 . 2 1 . . . Fabricators . | . . . . . . . . . Repair Stations . | . . . . . . . . . Recycling Units . | . . . . . . . . . Scanalyzers . | . . . . . . . . . Garrison Access . | . . . . . . . . . Total Hacks 19 | . 6 5 1 5 1 . . 1 Successful 11 | . 3 1 1 4 1 . . 1 Failed 8 | . 3 4 . 1 . . . . Catastrophic . | . . . . . . . . . Database Lockouts . | . . . . . . . . . Manual 2 | . . . . 2 . . . . Terminals 17 | . 6 5 . 5 1 . . . Fabricators . | . . . . . . . . . Repair Stations . | . . . . . . . . . Recycling Units . | . . . . . . . . . Scanalyzers . | . . . . . . . . . Garrison Access . | . . . . . . . . . Terminal Hacks 10 | . 3 1 1 3 1 . . 1 Record 1 | . . . . 1 . . . . Prototype ID Bank 3 | . 1 1 . 1 . . . . Open Door 2 | . . . 1 . . . . 1 Open DSF 1 | . . . . . 1 . . . Maintenance Status 1 | . 1 . . . . . . . Zone Layout 2 | . 1 . . 1 . . . . Fabricator Hacks . | . . . . . . . . . Repair Station Hacks . | . . . . . . . . . Recycling Unit Hacks . | . . . . . . . . . Scanalyzer . | . . . . . . . . . Garrison Access Hacks . | . . . . . . . . . Unauthorized Hacks 1 | . . . . 1 . . . . Terminals 1 | . . . . 1 . . . . Botnet 1 | . . . . 1 . . . . Fabricators . | . . . . . . . . . Repair Stations . | . . . . . . . . . Recycling Units . | . . . . . . . . . Scanalyzers . | . . . . . . . . . Garrison Access . | . . . . . . . . . Data Cores Recovered . | . . . . . . . . . Used . | . . . . . . . . . Hacking Detections 3 | . 1 1 . 1 . . . . Full Trace Events 1 | . . 1 . . . . . . Feedback Events . | . . . . . . . . . Feedback Blocked . | . . . . . . . . . Robot Schematics Acquired . | . . . . . . . . . Robots Built . | . . . . . . . . . Authchips . | . . . . . . . . . Time . | . . . . . . . . . Total Robot Build Rating . | . . . . . . . . . Part Schematics Acquired . | . . . . . . . . . Parts Built . | . . . . . . . . . Authchips . | . . . . . . . . . Time . | . . . . . . . . . Total Part Build Rating . | . . . . . . . . . Parts Repaired . | . . . . . . . . . Time . | . . . . . . . . . Parts Recycled . | . . . . . . . . . Recycled Matter . | . . . . . . . . . Retrieved Matter . | . . . . . . . . . Retrieved Components . | . . . . . . . . . Parts Scanalyzed . | . . . . . . . . . Part Schematics Acquired . | . . . . . . . . . Parts Damaged . | . . . . . . . . . Bothacking | -11 -10 -9 -9 -8 -7 -7 -6 -6 ------------ Run | Yrd Mat Mat Min Mat Fac DSF Fac Low Used RIF Installer . | . . . . . . . . . Robots Hacked . | . . . . . . . . . Non-combat . | . . . . . . . . . Combat . | . . . . . . . . . Robot Hacks Applied . | . . . . . . . . . Relay Couplers Released . | . . . . . . . . . Fabnet Peak Effective % . | . . . . . . . . . Robots Rewired . | . . . . . . . . . Allies Hacked . | . . . . . . . . . Hacks Repelled . | . . . . . . . . . Allies | -11 -10 -9 -9 -8 -7 -7 -6 -6 -------- Run | Yrd Mat Mat Min Mat Fac DSF Fac Low Total Allies . | . . . . . . . . . Largest Group . | . . . . . . . . . Highest-Rated Group . | . . . . . . . . . Highest-Rated Ally . | . . . . . . . . . Total Orders . | . . . . . . . . . Ally Attacks . | . . . . . . . . . Total Damage . | . . . . . . . . . Kills . | . . . . . . . . . Allies Corrupted . | . . . . . . . . . Allies Melted . | . . . . . . . . . Intel | -11 -10 -9 -9 -8 -7 -7 -6 -6 ------- Run | Yrd Mat Mat Min Mat Fac DSF Fac Low Robot Analysis Total . | . . . . . . . . . Derelict Logs Recovered 2 | . . . 1 . . . . 1 Drone Launches 2 | . . . . . . . . 2 Drone Recoveries . | . . . . . . . . . Exploration | -11 -10 -9 -9 -8 -7 -7 -6 -6 ------------- Run | Yrd Mat Mat Min Mat Fac DSF Fac Low Turns Passed 1395 | 44 67 61 224 119 9 55 238 578 Spaces Moved 1463 | 39 132 114 373 161 4 75 159 406 Core 926 | 21 132 114 373 138 . 54 79 15 Treads 11 | . . . . . . . 11 . Legs 525 | 18 . . . 23 4 21 69 390 Wheels . | . . . . . . . . . Hover . | . . . . . . . . . Flight 1 | . . . . . . . . 1 Fastest Speed 50 | 50 50 50 50 50 120 50 50 50 Average Speed 78 | 93 50 50 50 60 120 69 95 121 Slowest Speed 400 | 120 50 50 50 120 120 120 250 400 Overloaded Moves . | . . . . . . . . . Propulsion Burnouts . | . . . . . . . . . Robots Hopped . | . . . . . . . . . Cave-ins Triggered . | . . . . . . . . . Exploration Rate (%) 33 | 3 31 17 75 18 . 74 3 49 Regions Visited 8 Branch Regions 2 Pre-discovered Areas 1 | . . . 1 . . . . . Known Exits Taken 2 | . . . . . 1 . 1 . Unknown Exits Taken 5 | 1 1 1 1 1 . . . . Scrap Searched 5 | . . . 2 . . . . 3 Spaces Dug . | . . . . . . . . . Terrain Destroyed . | . . . . . . . . . Melee . | . . . . . . . . . Projectile . | . . . . . . . . . AOE . | . . . . . . . . . Terrain Rammed . | . . . . . . . . . Walls Destroyed . | . . . . . . . . . Machines Disabled . | . . . . . . . . . Actions | -11 -10 -9 -9 -8 -7 -7 -6 -6 --------- Run | Yrd Mat Mat Min Mat Fac DSF Fac Low Total 1643 | 45 132 117 410 185 8 77 210 459 Wait 62 | . . . 33 13 . . 4 12 Move 1455 | 38 131 113 372 160 3 74 158 406 Hop . | . . . . . . . . . Pick Up 13 | 1 1 . 2 . . . 7 2 Fast Attach 32 | 3 . . 1 1 . 1 14 12 Attach 17 | . . 2 . 3 5 . 3 4 Detach 12 | 3 . 1 . 5 . 1 2 . Swap 2 | . . 1 . . . . . 1 Drop 9 | . . . 2 1 . . 3 3 Fire . | . . . . . . . . . Melee 34 | . . . . . . . 19 15 Ram 6 | . . . . 2 . . . 4 Kick . | . . . . . . . . . Crush . | . . . . . . . . . Escape Stasis . | . . . . . . . . . Rewire 1 | . . . . . . 1 . . Trap . | . . . . . . . . . Miscellaneous . | . . . . . . . . . Route ------- -11/Scrapyard -10/Materials -9/Materials (discovered 2 exits: *Min / [*Sto]) -9/Mines -8/Materials -7/Factory -7/DSF -6/Factory -6/Lower Caves History --------- Turn | Location | Event 9 | -11/Scrapyard | Discovered new exit (range 16) 45 | -11/Scrapyard | Entered Materials 105 | -10/Materials | Discovered new exit (range 15) 112 | -10/Materials | Entered another Materials area 112 | -9/Materials | Evolved 2 slots: Propulsion x1, Utility x1 138 | -9/Materials | Discovered new exit (range 16) 169 | -9/Materials | Discovered new exit (range 8) 173 | -9/Materials | Entered Mines 183 | -9/Mines | Learned location of Zion (-6) 311 | -9/Mines | Build established: Mutant 362 | -9/Mines | Met a Derelict who couldn't figure out how to use a Trap Extractor 394 | -9/Mines | Discovered new exit (range 6) 397 | -9/Mines | Entered Materials 397 | -8/Materials | Evolved 2 slots: Propulsion x1, Utility x1 504 | -8/Materials | Core integrity fell below 50% 509 | -8/Materials | Discovered new exit (range 16) 514 | -8/Materials | Core integrity fell below 20% 516 | -8/Materials | Entered Factory 516 | -7/Factory | Evolved 2 slots: Power x1, Propulsion x1 524 | -7/Factory | Identified exit to DSF 525 | -7/Factory | Entered DSF 555 | -7/DSF | Additional patrols routed to DSF 564 | -7/DSF | Discovered new exit (range 14) 580 | -7/DSF | Entered Factory 580 | -6/Factory | Evolved 2 slots: Propulsion x1, Utility x1 583 | -6/Factory | Lost 4 parts (2p1n1u) 601 | -6/Factory | Discovered new exit (range 7) 805 | -6/Factory | Core integrity fell below 50% 813 | -6/Factory | Identified exit to Lower Caves 818 | -6/Factory | Entered Lower Caves 894 | -6/Lower Caves | Core integrity fell below 20% 916 | -6/Lower Caves | Lost 13 parts (2p6n3u2w) 956 | -6/Lower Caves | Learned Factory terminal intel 1205 | -6/Lower Caves | Encountered a Warlord checkpoint 1362 | -6/Lower Caves | Attracted the attention of an 0b10 checkpoint 1396 | -6/Lower Caves | Destroyed by Y-54 Guardian with Flak Gun Last Messages --------------- 01259_ Acquired 10 matter. 01261_ Acquired Melee Analysis Suite. 01302_ Searching scrap... 01302_ Found Enh. Optical Array. 01302_ Found Adv. Weight Redist. System. 01302_ Found Focal Shield. 01302_ Found Gauss Cannon. 01302_ Found 25 Matter. 01303_ Acquired 10 matter. 01357_ Penetrated by Slug. 01362_ Y-54 Guardian: "INTERCEPTING UNREGISTERED DERELICT." 01368_ Carbon-fiber Leg destroyed. 01368_ Gravmag System destroyed. 01372_ 0b10 Decoder Chip [Skirmisher] destroyed. 01372_ Carbon-fiber Leg destroyed. 01382_ Penetrated by Slug. 01382_ Lgt. Angular Momentum Engine destroyed. 01382_ Penetrated by Slug. 01382_ Lgt. Fission Core destroyed. 01385_ Penetrated by Slug. Map ----- +----------------------------------------------------+ | #???????????####?#### ##????????? | | #???????????# ### % #????????? | | #????????????# ## #????????? | | ###????????????## ###### #??#####?? | | ####?????????##### ##????## ####?## ### | | #????????## ##?????## ###?#### | | #?######## ##?????## ##??## # | | ### #### ??### #???# ##### | | ## ### ## ###?# #???? | | ## ##### #?# #### ##???? | | # ##???# ####?# #?# #???## | | ###???# ##????#### ## ##?## ##???# | | ### ##????# #????????## ?# ##???## #???? | | ### ##?????# #??????# ??# ##????# #??### | | #?????# #?????#???# ##???# #### | | #?????# #????????## ##??# | | # ## #?? #????????##### ##?# # | | # #? ### ##???###????# ########## | | #? ??##?# ###%%#????# ######## | | ###? ????? ##???## | | #??? ????? ## %%##???# ## | | #??? ?????? ???## %% ##### #### # | | #?????????? ?????# % % ## #???# | | #????????? ?????# ## ####### | | #???????? #?????# %%% ### ## | | #????? ? #????# @% #?## | | #????# ##### %### #?#### # | | #????# #?????? #????# # | | #????# #??????????#????# ### | | #????# % #???????????????#####? # | | #???## ??# % #????????????????????? # | | #??## #?## ##????????????????????? | | #??? #??# % #?????????????????????? # | | ###?? #### %% #????????????????????? #? | | ##? ### ##????????????????????? ??# | | ##? #???# Y###??????????????????????#??? | | ### ###?##### #???????????????????????????? | | ## #???## ## %#??##???????????????????????? | | ## #???# % #?# ##??????????????????????? | | ### ##### ## #??????????????????????? | | ?## % #??????????????????????? | | #??### % % % ##??????????????????????? | | ?????# #### % % ##????#?? ?????????????? | | ?????# ##??## %% ######???? ## ?????????????? | | ??? ##????###% #?###???? ?????????????? | | ? #???????# ### ##?? ????????????? | | ### #???????#%%## ## #????????????? | | ???# ##???????# #???????????????? | | #????###????????#% #????????????????? | | ???????????????# ## ##????????????????? | +----------------------------------------------------+ Best States ------------- Heat Dissipation 37 Energy Generation 38 Energy Capacity 370 Matter Stores 300 Matter Capacity 300 Sight Range 16 Terrain Scan Density 210 ECM Strength 2 Armor Coverage 150 Evasion (%) 55 Melee Accuracy 5 Core Analysis 6 Recoil Reduction 1 Defensive Hacking 11 Trap Extractor Capacity 6 Item Schematics ----------------- None Robot Schematics ------------------ None Fabricated ------------ Nothing Alien Tech Used ----------------- None Achievements -------------- None Challenges ------------ None Game ------ Seed ControlFusionPrototype Manual? 0 Play Time 00:24:45 Cumulative 18.2 hours Start 2024.03.03 @ 10:24:31 End 2024.03.03 @ 10:50:47 Sessions 1 Manual Loads 0 Difficulty Rogue Special Mode None Game No. 29 Rogue 18 Adventurer 11 Explorer 0 Win Type - Total 0 Types 0/0/0/0/0/0/0/0/0 Lore% 22 Gallery% 26 Achievement% 32 Wizard Run 0 Options --------- Layout 0 ASCII 0 Keyboard 0 Movement Mouse Keybinds 0 Fullscreen 2 Font 18/SmallcapsGlow Map View 76x50 Zoom Use 0% Tactical HUD 1 Map Filters NONE Filters NONE Steam 1 RUN: 27427c88-cf8d-40eb-9cc1-72274e42365a